Cogmind - Beta 14 @@@ ROGUE MODE // 2024.09.20 @ 22:27:04 Player: Duduxx Result: Destroyed by G-47 Trooper with Particle Gun Performance ------------- Evolutions (3) 1500 Regions Visited (7) 1400 Robots Destroyed (66) 330 Value Destroyed (1820) 1820 Prototype IDs (2) 40 Alien Tech Used (0) 0 Bonus (200) 200 TOTAL SCORE: 5290 Bonus ------- Entered Garrisons 200 Cogmind --------- Core Integrity 0/700 Matter 249/300 Energy 160/160 System Corruption 0% Temperature Cool (9) Movement Walking (120) Location -7/Garrison Parts ------- > --- POWER (2) -------- Light Nuclear Core > --- PROPULSION (4) --- Carbon-fiber Leg Carbon-fiber Leg > --- UTILITY (5) ------ Hacking Suite > --- WEAPON (2) ------- Heavy Assault Rifle > --- INVENTORY (5) ---- (None) Peak State ------------ > --- POWER ------------ Light Nuclear Core Heavy Deuterium Engine > --- PROPULSION ------- Airjet Airjet Airjet Gravmag System > --- UTILITY ---------- Cooling System Medium Storage Unit Core Analyzer Core Analyzer Hacking Suite > --- WEAPON ----------- Beam Rifle Particle Gun > --- INVENTORY -------- Reinforced Deuterium Engine Improved Heat Sink Weight Redist. System Improved Sensor Array Particle Gun Heavy Missile Launcher Great Maul [Rating: 41] Favorites ----------- Power Light Ion Engine Engine Light Ion Engine Power Core Light Nuclear Core Propulsion Aluminum Leg Treads Light Treads Leg Aluminum Leg Wheel Compact Wheel Hover Unit Hover Unit Flight Unit VTOL Module Utility Core Analyzer Device Cooling System Storage Medium Storage Unit Processor Core Analyzer Hackware Hacking Suite Weapon Advanced Beam Cannon Energy Gun Beam Rifle Energy Cannon Advanced Beam Cannon Ballistic Gun Assault Rifle Launcher Grenade Launcher Impact Weapon Great Maul Build | -11 -10 -9 -8 -7 -7 -7 -7 ------- Run | Yrd Mat Mat Mat Fac Was Fac Gar Slots Evolved 6 | . . 2 2 2 . . . Power 1 | . . . . 1 . . . Propulsion 2 | . . 1 1 . . . . Utility 3 | . . 1 1 1 . . . Weapon . | . . . . . . . . Parts Attached 84 | 6 6 22 9 31 3 . 7 Power 14 | 1 . 2 1 8 1 . 1 Engine 8 | 1 . 2 1 4 . . . Core 6 | . . . . 4 1 . 1 Reactor . | . . . . . . . . Propulsion 38 | 2 2 11 4 14 2 . 3 Treads 2 | 2 . . . . . . . Leg 10 | . . 3 1 1 2 . 3 Wheel 7 | . . 3 3 1 . . . Hover 14 | . 2 4 . 8 . . . Flight 5 | . . 1 . 4 . . . Utility 15 | 1 2 4 4 4 . . . Device 7 | . 1 1 2 3 . . . Storage 3 | 1 . 2 . . . . . Processor 4 | . 1 1 2 . . . . Hackware 1 | . . . . 1 . . . Protection . | . . . . . . . . Artifact . | . . . . . . . . Weapon 17 | 2 2 5 . 5 . . 3 Energy Gun 9 | 1 1 3 . 4 . . . Energy Cannon 2 | . . 2 . . . . . Ballistic Gun 2 | 1 . . . . . . 1 Ballistic Cannon . | . . . . . . . . Launcher 3 | . 1 . . 1 . . 1 Special Weapon . | . . . . . . . . Impact Weapon 1 | . . . . . . . 1 Slashing Weapon . | . . . . . . . . Piercing Weapon . | . . . . . . . . Special Melee Weapon . | . . . . . . . . Unidentified Prototypes 2 | . . 1 . 1 . . . Corrupted Parts 2 | . . 2 . . . . . System Corruption 3 | . . 3 . . . . . Parts Lost 48 | . . 11 3 17 3 . 14 Power 6 | . . 1 . 3 1 . 1 Propulsion 24 | . . 7 3 7 2 . 5 Utility 8 | . . 1 . 3 . . 4 Weapon 10 | . . 2 . 4 . . 4 Highest Loss Streak 14 | . . 5 2 11 3 . 14 To Critical Strikes 1 | . . . . . 1 . . Average Slot Usage (%) 87 | . 87 91 91 90 82 . 48 Engine 8 | . 14 10 9 7 . . . Core 1 | . . . . 3 8 . 4 Treads 2 | . 22 . . . . . . Leg 8 | . . 8 20 4 1 . 12 Wheel 5 | . . 3 8 8 . . . Hover 7 | . 6 14 . 9 . . . Flight 2 | . . 1 . 5 18 . 3 Device 8 | . 2 10 9 7 15 . 4 Storage 7 | . 11 10 9 5 . . . Processor 12 | . 2 11 17 15 15 . 5 Hackware 2 | . . . . 7 7 . 7 Energy Gun 8 | . 7 13 . 9 15 . 3 Energy Cannon 5 | . . 3 18 2 . . . Ballistic Gun 2 | . 14 4 . . . . . Peak Build Rating 41 | 6 8 15 27 41 41 41 41 Average Rating 20 | 4 6 10 23 32 33 41 19 On Entrance 22 | . 6 8 15 27 39 41 41 Naked Turns . | . . . . . . . . Heaviest Build 50 | 12 13 23 35 50 19 14 16 Greatest Support 48 | 40 40 48 32 34 22 14 30 Greatest Overweight (x) 6 | . 3 6 3 4 . . 3 Average Overweight (x) . | . . . . . . . . Largest Inventory Capacity 10 | 8 8 10 10 10 5 5 5 Average Capacity 8 | 7 7 9 10 8 5 5 5 Most Carried 10 | . 5 9 10 10 4 2 2 Average Carried 5 | . 1 6 7 6 3 2 . Final Capacity 10 | 8 5 10 10 5 5 5 5 Final Carried 8 | . 5 8 8 4 2 2 . Class Distribution -------------------- 73% | Scavenger-Mutant 17% | Mutant 9% | Scavenger-Sprinter Dominant Class ---------------- Mutant | -10/Materials Scavenger-Mutant | -9/Materials Scavenger-Mutant | -8/Materials Scavenger-Mutant | -7/Factory Scavenger-Sprinter | -7/Waste Scavenger-Sprinter | -7/Factory Scavenger-Mutant | -7/Garrison Resources | -11 -10 -9 -8 -7 -7 -7 -7 ----------- Run | Yrd Mat Mat Mat Fac Was Fac Gar Matter Collected 1206 | 214 93 301 233 283 . 55 27 Remotely . | . . . . . . . . Salvage Created 2331 | . 156 868 368 717 . . 222 Parts 130 | . 11 60 17 32 . . 10 Haulers Intercepted 2 | . . 2 . . . . . Recyclers Shooed 3 | . . 3 . . . . . Parts Field Recycled . | . . . . . . . . Retrieved Matter . | . . . . . . . . Parts Self-Destructed . | . . . . . . . . Prevented . | . . . . . . . . Kills | -11 -10 -9 -8 -7 -7 -7 -7 ------- Run | Yrd Mat Mat Mat Fac Was Fac Gar Combat Hostiles Destroyed 45 | . 4 11 5 16 . . 9 Guns 31 | . 3 11 . 14 . . 3 Cannons 5 | . . . 5 . . . . AOE 8 | . 1 . . 2 . . 5 Classes Destroyed 10 | . 5 3 2 . . . . Worker 3 | . 1 . . 2 . . . Builder 1 | . . 1 . . . . . Hauler 2 | . . 2 . . . . . Recycler 7 | . 1 4 1 1 . . . Operator 2 | . . . 2 . . . . Watcher 6 | . 2 3 . 1 . . . Swarmer 19 | . 2 4 . 8 . . 5 Grunt 16 | . 2 4 3 6 . . 1 Sentry 6 | . . 3 1 1 . . 1 Hunter 4 | . . . 1 1 . . 2 Best Kill Streak 6 | . 3 3 5 3 . . 6 Combat Bots Only 7 | . 2 2 4 3 . . 7 Max Kills in Single Turn 3 | . 2 1 2 2 . . 3 Gunslinging . | . . . . . . . . Exploded 3 | . 1 . . 2 . . 3 Melee . | . . . . . . . . Uniques/NPCs Destroyed . | . . . . . . . . Combat | -11 -10 -9 -8 -7 -7 -7 -7 -------- Run | Yrd Mat Mat Mat Fac Was Fac Gar Hostile Shots Fired 477 | . 23 78 50 156 1 . 169 Missed 164 | . 6 21 9 69 . . 59 Damage Taken 4542 | . 330 668 937 1258 53 . 1296 Core 1376 | . 96 143 421 305 22 . 389 Absorbed by Shields . | . . . . . . . . Core Remaining (%) 62 | 100 61 64 23 . . . . Volleys Fired 192 | . 19 58 25 59 12 . 19 Largest 2 | . 2 2 2 2 2 . 2 Hottest 138 | . 70 121 136 138 138 . 138 Shots Fired 321 | . 36 94 50 94 24 . 23 Gun 254 | . 32 94 . 84 24 . 20 Cannon 58 | . . . 50 8 . . . Launcher 9 | . 4 . . 2 . . 3 Special . | . . . . . . . . Kinetic 47 | . 19 20 . . . . 8 Thermal 250 | . 13 59 50 92 24 . 12 Explosive 9 | . 4 . . 2 . . 3 Electromagnetic 15 | . . 15 . . . . . Robot Hit Streak 13 | . 13 9 7 8 7 . 5 Robot Miss Streak 4 | . 4 4 3 3 3 . 2 Penetration Max . | . . . . . . . . Secondary Targets 3 | . 1 1 . 1 . . . Max Gunslinging Chain 1 | . 1 1 . 1 . . . Shots Hit Robots 216 | . 26 64 30 57 17 . 22 Core Hits 107 | . 14 29 13 36 3 . 12 Critical Kills . | . . . . . . . . Critical Parts Destroyed 3 | . . 1 . . . . 2 Critical Strikes 11 | . . 5 . 4 . . 2 Burn 8 | . . 4 . 4 . . . Destroy 1 | . . 1 . . . . . Smash 2 | . . . . . . . 2 Melee Attacks 6 | . . . . . . . 6 Impact 6 | . . . . . . . 6 Slashing . | . . . . . . . . Piercing . | . . . . . . . . Sneak Attacks . | . . . . . . . . Combat Hostiles . | . . . . . . . . Follow-up Attacks . | . . . . . . . . Damage Inflicted 4662 | . 516 1072 657 1157 398 . 862 Guns 2729 | . 299 966 . 814 398 . 252 Cannons 737 | . . . 654 83 . . . Explosions 949 | . 209 103 . 260 . . 377 Melee 216 | . . . . . . . 216 Ramming 31 | . 8 3 3 . . . 17 Kinetic 441 | . 185 158 . . . . 98 Thermal 2925 | . 114 708 654 897 398 . 154 Explosive 846 | . 209 . . 260 . . 377 Electromagnetic 203 | . . 203 . . . . . Impact 216 | . . . . . . . 216 Slashing . | . . . . . . . . Piercing . | . . . . . . . . Highest Corruption 3 | . . 3 . . . . . Average Corruption 2 | . . 2 . . . . . Corruption Purged . | . . . . . . . . Corruption Blocked . | . . . . . . . . Effects 3 | . . 3 . . . . . Message Errors 1 | . . 1 . . . . . Matter Fused 1 | . . 1 . . . . . Weapon Failures 1 | . . 1 . . . . . Overload Shots . | . . . . . . . . Overflow Damage 124 | . . . 11 . . . 113 Projectiles 11 | . . . 11 . . . . Explosions 60 | . . . . . . . 60 Melee 53 | . . . . . . . 53 Knockbacks 1 | . . . . . . . 1 Impact 1 | . . . . . . . 1 Kinetic . | . . . . . . . . Secondary . | . . . . . . . . Self-Inflicted Damage 135 | . 22 47 . . . . 66 Shots 5 | . 1 2 . . . . 2 Rammed 2 | . 1 1 . . . . . Targets Rammed 9 | . 1 1 1 . . . 6 Kicked 7 | . . . 1 . . . 6 Crushed . | . . . . . . . . Highest Temperature 870 | . 117 123 870 239 162 . 148 Average Temperature 131 | . 41 42 306 63 89 . 88 Received Heat Transfer 1041 | . 105 147 270 240 . . 279 Effects 26 | . . . 26 . . . . Shutdowns 5 | . . . 5 . . . . Energy Bleed 2 | . . . 2 . . . . Matter Decay 3 | . . . 3 . . . . Short Circuit 1 | . . . 1 . . . . Damage (minor) 3 | . . . 3 . . . . Damage (major) 9 | . . . 9 . . . . Damage (core) 3 | . . . 3 . . . . Siege Activations . | . . . . . . . . Robots Corrupted 1 | . . . . . . . 1 Combat Hostiles 1 | . . . . . . . 1 Parts Fried 1 | . . . . . . . 1 Impact Corruptions 3 | . . . . . . . 3 Robots Melted . | . . . . . . . . Combat Hostiles . | . . . . . . . . Parts Melted 7 | . . 3 . 4 . . . Heat Transferred 6995 | . 333 2000 1184 2405 777 . 296 Parts Sabotaged . | . . . . . . . . Parts Stolen . | . . . . . . . . Parts Stripped . | . . . . . . . . Power Chain Reactions 3 | . . 3 . . . . . Alert | -11 -10 -9 -8 -7 -7 -7 -7 ------- Run | Yrd Mat Mat Mat Fac Was Fac Gar Peak Influence 436 | . 196 436 258 236 88 51 236 Initial 133 | . . 82 133 35 73 51 35 Average 165 | . 119 269 174 120 67 51 112 Maximum Alert Level 2 | . . 2 1 1 . . 1 Low Security (%) 69 | 100 100 25 68 88 100 100 93 Level 1 26 | . . 60 31 11 . . 6 Level 2 3 | . . 13 . . . . . Level 3 . | . . . . . . . . Level 4 . | . . . . . . . . Level 5 . | . . . . . . . . High Security . | . . . . . . . . Max Security . | . . . . . . . . Squads Dispatched 7 | . 1 . 1 5 . . . Investigation 3 | . 1 . . 2 . . . Extermination . | . . . . . . . . Reinforcement 1 | . . . 1 . . . . Assault . | . . . . . . . . Garrison 3 | . . . . 3 . . . Intercept . | . . . . . . . . Searches Triggered . | . . . . . . . . Construction Impeded . | . . . . . . . . Haulers Reinforced . | . . . . . . . . Active Scanning Responses . | . . . . . . . . Cargo Convoy Interrupts 1 | . . . . 1 . . . Stealth | -11 -10 -9 -8 -7 -7 -7 -7 --------- Run | Yrd Mat Mat Mat Fac Was Fac Gar Distress Signals 4 | . 2 2 . . . . . Communications Jammed . | . . . . . . . . Distress Signals . | . . . . . . . . Times Spotted 94 | . 12 22 11 28 6 . 15 Peak Tracking Total 10 | . 4 7 5 10 6 . 9 Tactical Retreats 10 | . 1 5 . 1 . . 3 Traps | -11 -10 -9 -8 -7 -7 -7 -7 ------- Run | Yrd Mat Mat Mat Fac Was Fac Gar Traps Triggered 3 | . 1 1 . 1 . . . Indirectly . | . . . . . . . . Trap Hack Attempts . | . . . . . . . . Triggered . | . . . . . . . . Disarmed . | . . . . . . . . Reprogrammed . | . . . . . . . . Reused . | . . . . . . . . Traps Extracted . | . . . . . . . . Installed . | . . . . . . . . Triggered . | . . . . . . . . Machines | -11 -10 -9 -8 -7 -7 -7 -7 ---------- Run | Yrd Mat Mat Mat Fac Was Fac Gar Machines Disabled 2 | . 1 . . 1 . . . Max in Single Turn 1 | . 1 . . 1 . . . Machines Repaired . | . . . . . . . . Machines Dismantled . | . . . . . . . . Machines Sabotaged . | . . . . . . . . Overloaded Fab Kills . | . . . . . . . . Hacking | -11 -10 -9 -8 -7 -7 -7 -7 --------- Run | Yrd Mat Mat Mat Fac Was Fac Gar Machines Accessed 7 | . 1 . 1 3 . 1 1 Terminals 3 | . 1 . . 1 . . 1 Fabricators 1 | . . . . 1 . . . Repair Stations . | . . . . . . . . Recycling Units 1 | . . . 1 . . . . Scanalyzers . | . . . . . . . . Garrison Access 2 | . . . . 1 . 1 . Total Hacks 17 | . 1 . 1 11 . 1 3 Successful 8 | . . . 1 5 . 1 1 Failed 9 | . 1 . . 6 . . 2 Catastrophic 1 | . 1 . . . . . . Database Lockouts . | . . . . . . . . Manual 7 | . 1 . . 6 . . . Terminals 10 | . 1 . . 6 . . 3 Fabricators 2 | . . . . 2 . . . Repair Stations . | . . . . . . . . Recycling Units 1 | . . . 1 . . . . Scanalyzers . | . . . . . . . . Garrison Access 4 | . . . . 3 . 1 . Terminal Hacks 4 | . . . . 3 . . 1 Part Schematic 2 | . . . . 2 . . . Alert Level 1 | . . . . 1 . . . Garrison Registry 1 | . . . . . . . 1 Fabricator Hacks 2 | . . . . 2 . . . Load Schematic 1 | . . . . 1 . . . Build 1 | . . . . 1 . . . Repair Station Hacks . | . . . . . . . . Recycling Unit Hacks 1 | . . . 1 . . . . Report Inventory 1 | . . . 1 . . . . Scanalyzer . | . . . . . . . . Garrison Access Hacks 1 | . . . . . . 1 . Unlock Access 1 | . . . . . . 1 . Unauthorized Hacks . | . . . . . . . . Terminals . | . . . . . . . . Fabricators . | . . . . . . . . Repair Stations . | . . . . . . . . Recycling Units . | . . . . . . . . Scanalyzers . | . . . . . . . . Garrison Access . | . . . . . . . . Data Cores Recovered 1 | . . . 1 . . . . Used . | . . . . . . . . Hacking Detections 6 | . 1 . 1 3 . . 1 Full Trace Events 3 | . . . . 2 . . 1 Feedback Events . | . . . . . . . . Feedback Blocked . | . . . . . . . . Robot Schematics Acquired . | . . . . . . . . Robots Built . | . . . . . . . . Authchips . | . . . . . . . . Time . | . . . . . . . . Total Robot Build Rating . | . . . . . . . . Part Schematics Acquired 2 | . . . . 2 . . . Parts Built 2 | . . . . 2 . . . Authchips . | . . . . . . . . Time 42 | . . . . 42 . . . Total Part Build Rating 8 | . . . . 8 . . . Parts Repaired . | . . . . . . . . Time . | . . . . . . . . Parts Recycled . | . . . . . . . . Recycled Matter . | . . . . . . . . Retrieved Matter . | . . . . . . . . Retrieved Components . | . . . . . . . . Parts Scanalyzed . | . . . . . . . . Part Schematics Acquired . | . . . . . . . . Parts Damaged . | . . . . . . . . Bothacking | -11 -10 -9 -8 -7 -7 -7 -7 ------------ Run | Yrd Mat Mat Mat Fac Was Fac Gar Used RIF Installer . | . . . . . . . . Robots Hacked . | . . . . . . . . Non-combat . | . . . . . . . . Combat . | . . . . . . . . Robot Hacks Applied . | . . . . . . . . Relay Couplers Released . | . . . . . . . . Fabnet Peak Effective % . | . . . . . . . . Robots Rewired . | . . . . . . . . Allies Hacked . | . . . . . . . . Hacks Repelled . | . . . . . . . . Allies | -11 -10 -9 -8 -7 -7 -7 -7 -------- Run | Yrd Mat Mat Mat Fac Was Fac Gar Total Allies . | . . . . . . . . Largest Group . | . . . . . . . . Highest-Rated Group . | . . . . . . . . Highest-Rated Ally . | . . . . . . . . Total Orders . | . . . . . . . . Ally Attacks . | . . . . . . . . Total Damage . | . . . . . . . . Kills . | . . . . . . . . Allies Corrupted . | . . . . . . . . Allies Melted . | . . . . . . . . Intel | -11 -10 -9 -8 -7 -7 -7 -7 ------- Run | Yrd Mat Mat Mat Fac Was Fac Gar Robot Analysis Total . | . . . . . . . . Derelict Logs Recovered . | . . . . . . . . Drone Launches . | . . . . . . . . Drone Recoveries . | . . . . . . . . Exploration | -11 -10 -9 -8 -7 -7 -7 -7 ------------- Run | Yrd Mat Mat Mat Fac Was Fac Gar Turns Passed 2392 | 53 285 655 448 707 81 7 156 Spaces Moved 1906 | 31 188 477 240 753 130 12 75 Core 35 | 5 1 17 . 6 . . 6 Treads 125 | 26 99 . . . . . . Legs 283 | . . 112 128 . . . 43 Wheels 377 | . . 39 112 226 . . . Hover 527 | . 88 309 . 130 . . . Flight 559 | . . . . 391 130 12 26 Fastest Speed 26 | 50 56 52 115 26 26 52 52 Average Speed 83 | 142 112 90 144 57 30 52 101 Slowest Speed 350 | 160 200 350 330 250 52 52 200 Overloaded Moves . | . . . . . . . . Propulsion Burnouts . | . . . . . . . . Robots Hopped . | . . . . . . . . Cave-ins Triggered . | . . . . . . . . Exploration Rate (%) 25 | 4 41 35 22 17 66 1 15 Regions Visited 7 Branch Regions . Pre-discovered Areas . | . . . . . . . . Known Exits Taken 1 | . . . . . . 1 . Unknown Exits Taken 4 | 1 1 1 1 . . . . Scrap Searched . | . . . . . . . . Spaces Dug . | . . . . . . . . Terrain Destroyed 56 | . 14 4 . 2 . . 36 Melee . | . . . . . . . . Projectile . | . . . . . . . . AOE 56 | . 14 4 . 2 . . 36 Terrain Rammed . | . . . . . . . . Walls Destroyed . | . . . . . . . . Machines Disabled . | . . . . . . . . Actions | -11 -10 -9 -8 -7 -7 -7 -7 --------- Run | Yrd Mat Mat Mat Fac Was Fac Gar Total 2363 | 37 223 604 294 932 146 12 115 Wait 93 | 1 . 28 1 60 1 . 2 Move 1901 | 30 187 476 239 753 129 12 75 Hop . | . . . . . . . . Pick Up 33 | . 5 8 8 11 1 . . Fast Attach 46 | 6 3 11 5 16 . . 5 Attach 31 | . 1 9 3 13 3 . 2 Detach 22 | . 3 7 3 9 . . . Swap 7 | . 2 2 1 2 . . . Drop 23 | . 2 4 8 9 . . . Fire 192 | . 19 58 25 59 12 . 19 Melee 6 | . . . . . . . 6 Ram 1 | . . 1 . . . . . Kick 7 | . . . 1 . . . 6 Crush 1 | . 1 . . . . . . Escape Stasis . | . . . . . . . . Rewire . | . . . . . . . . Trap . | . . . . . . . . Miscellaneous . | . . . . . . . . Route ------- -11/Scrapyard -10/Materials (discovered 2 exits: *Mat x2) -9/Materials -8/Materials -7/Factory -7/Waste -7/Factory -7/Garrison (discovered 4 exits: [Fac x3] / [Fac]) History --------- Turn | Location | Event 4 | -11/Scrapyard | Discovered new exit (range 14) 54 | -11/Scrapyard | Entered Materials 117 | -10/Materials | Discovered new exit (range 11) 328 | -10/Materials | Discovered new exit (range 4) 339 | -10/Materials | Entered another Materials area 339 | -9/Materials | Evolved 2 slots: Propulsion x1, Utility x1 579 | -9/Materials | Build established: Scavenger-Mutant 632 | -9/Materials | Lost 5 parts (3n1u1w) 945 | -9/Materials | Discovered new exit (range 4) 994 | -9/Materials | Entered another Materials area 994 | -8/Materials | Evolved 2 slots: Propulsion x1, Utility x1 1244 | -8/Materials | Core integrity fell below 50% 1427 | -8/Materials | Discovered new exit (range 12) 1442 | -8/Materials | Entered Factory 1442 | -7/Factory | Evolved 2 slots: Power x1, Utility x1 1594 | -7/Factory | Lost 3 parts (1n2w) 1711 | -7/Factory | Fabricated Gravmag System (x2) 1949 | -7/Factory | Garrison activated, responded to threat 2050 | -7/Factory | Lost 11 parts (3p4n2u2w) 2143 | -7/Factory | Cargo convoy interrupted 2147 | -7/Factory | Discovered new exit (range 16) 2149 | -7/Factory | Sucked down chute 2149 | -7/Factory | Entered Waste 2152 | -7/Waste | Spotted C-40 Crusher 2155 | -7/Waste | Spotted C-40 Crusher 2169 | -7/Waste | Crushed by Compactor (1 part destroyed, 1 dropped) 2195 | -7/Waste | Spotted C-40 Crusher 2196 | -7/Waste | Spotted C-40 Crusher 2198 | -7/Waste | Spotted C-40 Crusher 2200 | -7/Waste | Lost 3 parts (1p2n) 2217 | -7/Waste | Spotted C-40 Crusher 2223 | -7/Waste | Discovered new exit (range 12) 2230 | -7/Waste | Entered Factory 2237 | -7/Factory | Identified exit to Garrison 2237 | -7/Factory | Entered Garrison 2249 | -7/Garrison | Triggered checkpoint 2260 | -7/Garrison | Core integrity fell below 50% 2300 | -7/Garrison | Core integrity fell below 20% 2325 | -7/Garrison | Destroyed 7 combat bots 2348 | -7/Garrison | Discovered new exit (range 47) 2348 | -7/Garrison | Discovered new exit (range 58) 2348 | -7/Garrison | Discovered new exit (range 40) 2348 | -7/Garrison | Discovered new exit (range 35) 2355 | -7/Garrison | Lost 14 parts (1p5n4u4w) 2393 | -7/Garrison | Destroyed by G-47 Trooper with Particle Gun Last Messages --------------- 02322_ Acquired 9 matter. 02322_ Hvy. Missile Launcher destroyed. 02324_ Great Maul destroyed. 02325_ The unstable cave ceiling collapses. 02325_ Acquired Carbon-fiber Leg. 02348_ Connecting with Garrison Terminal... 02348_ EXIT=FOUND >>Download(Registry) Retrieving Garrison registry... Downloaded map data. Downloaded component registry. Downloaded security status. 02348_ ALERT: Suspicious activity at Terminal G003. Transmitting hostile system tracking data. 02353_ Kicked G-47 Trooper. 02356_ Kicked G-47 Trooper out of the way. 02365_ Kicked S-27 Virus out of the way. 02376_ Acquired Hvy. Assault Rifle. 02383_ S-27 Virus destroyed. Map ----- +----------------------------------------------------+ | ??????########## ######### #????# ### #???# ##### | | ??????# + #????# #???# + | | ??????# ###########????##### #???####### | | ??????# ##### ###??????????????????# #?????????# | | ??????# #???# #????????????????????# #?????????# | | ??????#####???# #????????????????????# #??###????# | | ??????????????# #????????????????????# #### ###### | | ??????????????# ###########??????????# + ^ | | ??????????????# + "#??????????# ###### #### | | ??????????????# #### ##"T"#??????????# #????# #??? | | ???????####???# #### ######??????????# #????# ###? | | ???????# #???# # ## #?????????????###+###### " ## | | ???????# #???# # ####??????????# " + | | ???????##+##### ##????????##^######## " ## | | ????????# % #######??#] !#?????# ###? | | ????????# ##### # # #"""""#??#] !#?????# #??? | | ????????# #???# # # ### ## ##??#] !#?????# #??? | | ???????## ##??# #??#] !#?????# #??? | | ???????#! !#??#### # ### ####??#####???### #??? | | ???????#! !#????# # #?# #?????????????#"# #### | | ???????#!!!#????#########?# #?????????????#" ##"T | | ???????#####??????????????#=#?????????????#" | | ????????????????????#######g####??????????#" #### | | ????????????????????# *%[ #??????????#"#+#??? | | ????????????????????# ! * #??????????### #??? | | ????????????????????# @ #????????????# #??? | | ????????????????????# #????????????# #??? | | ????????????????????# #????????????# #??? | | ????????????????????# h #????????????# #??? | | ????????????????????# ! #????????????# #??? | | ????????????????????# * [ [#????????????# #??? | | ????????????????????# #??????????### ###? | | ????????????????????# * #??????????# " " #? | | ????????????????????############??????????# #T# #? | | ??????????????????????????????????????????#######? | | ?????????????????????????????????????????????????? | | ?????????????????????????????????????????????????? | | ?????????????????????????????????????????????????? | | ?????????????????????????????????????????????????? | | ?????????????????????????????????????????????????? | | | | | | | | | | | | | | | | | | | | | +----------------------------------------------------+ Best States ------------- Heat Dissipation 56 Energy Generation 29 Energy Capacity 500 Matter Stores 300 Matter Capacity 300 Sight Range 18 Robot Scan Range 15 Terrain Scan Density 10 Additional Mass Support 6 Evasion (%) 64 Core Analysis 9 Recoil Reduction 2 Offensive Hacking 10 Item Schematics ----------------- Hacking Suite | -7/Factory | Hacked Gravmag System | -7/Factory | Hacked Robot Schematics ------------------ None Fabricated ------------ Gravmag System | x2 | -7/Factory Alien Tech Used ----------------- None Achievements -------------- None Challenges ------------ None Game ------ Seed PrecisionStorageExoskeleton Manual? 0 Play Time 00:34:26 Cumulative 61.1 hours Start 2024.09.20 @ 21:21:22 End 2024.09.20 @ 22:27:04 Sessions 1 Manual Loads 0 Difficulty Rogue Special Mode None Game No. 129 Rogue 129 Adventurer 0 Explorer 0 Win Type - Total 0 Types 0/0/0/0/0/0/0/0/0 Lore% 17 Gallery% 36 Achievement% 28 Wizard Run 0 Options --------- Layout 1 ASCII 0 Keyboard 1 Movement Arrows Keybinds 0 Fullscreen 1 Font 24/Smallcaps Map View 50x35 Zoom Use 0% Tactical HUD 1 Map Filters NONE Filters NONE Steam 1 RUN: a2df4098-c352-4462-9101-10e7afeaee7f